Cogmind - Beta 11.1 @@@ ROGUE MODE // 2022.06.09 @ 14:32:11 Player: Decinym Result: Destroyed by G-34 Mercenary with Small Laser Performance ------------- Evolutions (0) 0 Regions Visited (3) 600 Robots Destroyed (25) 125 Value Destroyed (895) 895 Prototype IDs (23) 460 Alien Tech Used (0) 0 Bonus (300) 300 TOTAL SCORE: 2380 Bonus ------- Aligned with FarCom 300 Cogmind --------- Core Integrity 0/250 Matter 215/300 Energy 9/100 System Corruption 2% Temperature Warm (131) Movement Treading (320) Ox2 Location -10/Exiles Parts ------- > --- POWER (1) -------- (None) > --- PROPULSION (2) --- Light Treads > --- UTILITY (2) ------ High-capacity Storage Unit > --- WEAPON (2) ------- Assault Rifle > --- INVENTORY (20) --- Light Nuclear Core Small Storage Unit Huge Storage Unit Medium Matter Pod (100) Modified TNC Light Armor Plating Supersonic Drone Bay (1/1) Medium Laser Firepult Assault Rifle Assault Rifle Assault Rifle Light Assault Rifle Datajack Peak State ------------ > --- POWER ------------ (None) > --- PROPULSION ------- Light Treads > --- UTILITY ---------- High-capacity Storage Unit > --- WEAPON ----------- Firepult > --- INVENTORY -------- Ion Engine Light Nuclear Core Light Treads Small Storage Unit Huge Storage Unit Medium Matter Pod Modified TNC Light Armor Plating Light Armor Plating Supersonic Drone Bay Medium Laser Assault Rifle Assault Rifle Assault Rifle Assault Rifle Light Assault Rifle Datajack [Rating: 25] Favorites ----------- Power Light Ion Engine Engine Light Ion Engine Propulsion Light Treads Treads Light Treads Leg Aluminum Leg Utility High-capacity Storage Unit Device Heat Sink Storage High-capacity Storage Unit Protection Light Armor Plating Weapon Light Assault Rifle Energy Gun Medium Laser Energy Cannon Firepult Ballistic Gun Light Assault Rifle Launcher Grenade Launcher Build | -11 -10 -10 -10 ------- Run | Scr Mat Min Exi Slots Evolved . | . . . . Power . | . . . . Propulsion . | . . . . Utility . | . . . . Weapon . | . . . . Parts Attached 15 | . 6 1 8 Power 1 | . . . 1 Engine 1 | . . . 1 Core . | . . . . Reactor . | . . . . Propulsion 4 | . 2 . 2 Treads 4 | . 2 . 2 Leg . | . . . . Wheel . | . . . . Hover . | . . . . Flight . | . . . . Utility 5 | . 3 1 1 Device 1 | . 1 . . Storage 1 | . 1 . . Processor . | . . . . Hackware . | . . . . Protection 3 | . 1 1 1 Artifact . | . . . . Weapon 5 | . 1 . 4 Energy Gun . | . . . . Energy Cannon 2 | . . . 2 Ballistic Gun 2 | . 1 . 1 Ballistic Cannon . | . . . . Launcher 1 | . . . 1 Special Weapon . | . . . . Impact Weapon . | . . . . Slashing Weapon . | . . . . Piercing Weapon . | . . . . Special Melee Weapon . | . . . . Unidentified Prototypes . | . . . . Parts Lost 9 | . 1 . 8 Power 2 | . . . 2 Propulsion 3 | . . . 3 Utility 3 | . 1 . 2 Weapon 1 | . . . 1 Highest Loss Streak 8 | . 1 . 8 To Critical Strikes . | . . . . Average Slot Usage (%) 95 | . 90 99 97 Engine 13 | . 14 14 13 Treads 26 | . 22 28 27 Leg 1 | . 5 . . Storage 14 | . 14 14 14 Protection 10 | . 5 13 13 Energy Gun 2 | . 6 . . Ballistic Gun 25 | . 21 28 26 Naked Turns . | . . . . Heaviest Build 49 | 11 49 48 48 Greatest Support 40 | 20 40 40 40 Greatest Overweight (x) 1 | . 1 1 1 Average Overweight (x) . | . . 1 1 Largest Inventory Capacity 20 | 8 20 20 20 Average Capacity 18 | 8 16 20 20 Most Carried 20 | 5 17 17 20 Average Carried 15 | 4 10 16 18 Final Capacity 20 | 8 20 20 20 Final Carried 17 | 4 17 16 15 Class Distribution -------------------- 100% | Mutant Dominant Class ---------------- Mutant | -10/Materials Mutant | -10/Mines Mutant | -10/Exiles Resources | -11 -10 -10 -10 ----------- Run | Scr Mat Min Exi Matter Collected 400 | 200 200 . . Remotely . | . . . . Salvage Created 787 | . 245 . 542 Parts 41 | . 16 . 25 Haulers Intercepted 1 | . 1 . . Recyclers Shooed . | . . . . Parts Field Recycled . | . . . . Retrieved Matter . | . . . . Parts Self-Destructed . | . . . . Prevented . | . . . . Kills | -11 -10 -10 -10 ------- Run | Scr Mat Min Exi Combat Hostiles Destroyed 23 | . 5 . 18 Guns 5 | . 5 . . AOE 16 | . . . 16 Classes Destroyed 7 | . 4 . 3 Worker 1 | . 1 . . Hauler 1 | . 1 . . Swarmer 3 | . 3 . . Grunt 12 | . 2 . 10 Brawler 1 | . . . 1 Hunter 3 | . . . 3 Programmer 4 | . . . 4 Best Kill Streak 18 | . 4 . 18 Combat Bots Only 18 | . 3 . 18 Max Kills in Single Turn 8 | . 1 . 8 Gunslinging . | . . . . Exploded 8 | . . . 8 Melee . | . . . . Uniques/NPCs Destroyed . | . . . . Combat | -11 -10 -10 -10 -------- Run | Scr Mat Min Exi Damage Taken 1580 | . 349 . 1231 Core 257 | . . . 257 Absorbed by Shields . | . . . . Core Remaining (%) 100 | 100 . . . Volleys Fired 38 | . 27 1 10 Largest 2 | . 2 2 2 Hottest 250 | . 70 40 250 Shots Fired 71 | . 54 2 15 Gun 67 | . 54 2 11 Cannon 2 | . . . 2 Launcher 2 | . . . 2 Special . | . . . . Kinetic 58 | . 45 2 11 Thermal 11 | . 9 . 2 Explosive 2 | . . . 2 Electromagnetic . | . . . . Robot Hit Streak 8 | . 8 1 5 Robot Miss Streak 6 | . 6 1 4 Penetration Max . | . . . . Secondary Targets . | . . . . Shots Hit Robots 41 | . 30 1 10 Core Hits 51 | . 13 . 38 Critical Kills . | . . . . Critical Parts Destroyed 1 | . 1 . . Critical Strikes 1 | . 1 . . Destroy 1 | . 1 . . Melee Attacks . | . . . . Impact . | . . . . Slashing . | . . . . Piercing . | . . . . Sneak Attacks . | . . . . Combat Hostiles . | . . . . Follow-up Attacks . | . . . . Damage Inflicted 2042 | . 299 10 1733 Guns 357 | . 299 10 48 Cannons 155 | . . . 155 Explosions 1530 | . . . 1530 Melee . | . . . . Ramming . | . . . . Kinetic 255 | . 197 10 48 Thermal 1027 | . 102 . 925 Explosive 760 | . . . 760 Electromagnetic . | . . . . Impact . | . . . . Slashing . | . . . . Piercing . | . . . . Highest Corruption 2 | . . . 2 Average Corruption 2 | . . . 2 Corruption Purged . | . . . . Corruption Blocked . | . . . . Effects 1 | . . . 1 Data Loss (minor) 1 | . . . 1 Overload Shots . | . . . . Overflow Damage 33 | . . . 33 Projectiles . | . . . . Explosions 33 | . . . 33 Melee . | . . . . Knockbacks . | . . . . Impact . | . . . . Kinetic . | . . . . Secondary . | . . . . Self-Inflicted Damage . | . . . . Shots . | . . . . Rammed . | . . . . Targets Rammed . | . . . . Kicked . | . . . . Crushed . | . . . . Highest Temperature 317 | . 317 6 247 Average Temperature 125 | . 156 4 92 Received Heat Transfer 369 | . 129 . 240 Siege Activations . | . . . . Robots Corrupted . | . . . . Combat Hostiles . | . . . . Parts Fried . | . . . . Impact Corruptions . | . . . . Robots Melted 2 | . . . 2 Combat Hostiles 2 | . . . 2 Parts Melted 15 | . 1 . 14 Heat Transferred 4856 | . 296 . 4560 Parts Sabotaged . | . . . . Parts Stolen . | . . . . Parts Stripped . | . . . . Power Chain Reactions . | . . . . Missiles Intercepted . | . . . . Alert | -11 -10 -10 -10 ------- Run | Scr Mat Min Exi Peak Influence 175 | . 175 8 . Initial 8 | . . 8 . Average 19 | . 27 6 . Maximum Alert Level . | . . . . Low Security (%) 100 | 100 100 100 . Level 1 . | . . . . Level 2 . | . . . . Level 3 . | . . . . Level 4 . | . . . . Level 5 . | . . . . High Security . | . . . . Max Security . | . . . . Squads Dispatched . | . . . . Investigation . | . . . . Extermination . | . . . . Reinforcement . | . . . . Assault . | . . . . Garrison . | . . . . Intercept . | . . . . Searches Triggered . | . . . . Construction Impeded . | . . . . Haulers Reinforced . | . . . . Active Scanning Responses . | . . . . Cargo Convoy Interrupts . | . . . . Stealth | -11 -10 -10 -10 --------- Run | Scr Mat Min Exi Distress Signals 3 | . 3 . . Communications Jammed . | . . . . Distress Signals . | . . . . Times Spotted 38 | . 13 . 25 Peak Tracking Total 25 | . 5 . 25 Tactical Retreats 2 | . 2 . . Traps | -11 -10 -10 -10 ------- Run | Scr Mat Min Exi Traps Triggered . | . . . . Indirectly . | . . . . Trap Hack Attempts . | . . . . Triggered . | . . . . Disarmed . | . . . . Reprogrammed . | . . . . Reused . | . . . . Traps Extracted . | . . . . Installed . | . . . . Triggered . | . . . . Machines | -11 -10 -10 -10 ---------- Run | Scr Mat Min Exi Machines Disabled . | . . . . Max in Single Turn . | . . . . Machines Sabotaged . | . . . . Garrisons Compromised . | . . . . Overloaded Fab Kills . | . . . . Hacking | -11 -10 -10 -10 --------- Run | Scr Mat Min Exi Machines Accessed 1 | . . . 1 Terminals . | . . . . Fabricators . | . . . . Repair Stations . | . . . . Recycling Units . | . . . . Scanalyzers . | . . . . Garrison Access . | . . . . Total Hacks 1 | . . . 1 Successful 1 | . . . 1 Failed . | . . . . Catastrophic . | . . . . Database Lockouts . | . . . . Manual 1 | . . . 1 Terminals . | . . . . Fabricators . | . . . . Repair Stations . | . . . . Recycling Units . | . . . . Scanalyzers . | . . . . Garrison Access . | . . . . Terminal Hacks 1 | . . . 1 EX-Prototype ID Bank 1 | . . . 1 Fabricator Hacks . | . . . . Repair Station Hacks . | . . . . Recycling Unit Hacks . | . . . . Scanalyzer . | . . . . Garrison Access Hacks . | . . . . Unauthorized Hacks . | . . . . Terminals . | . . . . Fabricators . | . . . . Repair Stations . | . . . . Recycling Units . | . . . . Scanalyzers . | . . . . Garrison Access . | . . . . Data Cores Recovered . | . . . . Used . | . . . . Hacking Detections . | . . . . Full Trace Events . | . . . . Feedback Events . | . . . . Feedback Blocked . | . . . . Robot Schematics Acquired . | . . . . Robots Built . | . . . . Authchips . | . . . . Time . | . . . . Total Robot Build Rating . | . . . . Part Schematics Acquired . | . . . . Parts Built . | . . . . Authchips . | . . . . Time . | . . . . Total Part Build Rating . | . . . . Parts Repaired . | . . . . Time . | . . . . Parts Recycled . | . . . . Recycled Matter . | . . . . Retrieved Matter . | . . . . Retrieved Components . | . . . . Parts Scanalyzed . | . . . . Part Schematics Acquired . | . . . . Parts Damaged . | . . . . Bothacking | -11 -10 -10 -10 ------------ Run | Scr Mat Min Exi Used RIF Installer . | . . . . Robots Hacked . | . . . . Non-combat . | . . . . Combat . | . . . . Robot Hacks Applied . | . . . . Relay Couplers Released . | . . . . Fabnet Peak Effective % . | . . . . Robots Rewired . | . . . . Allies Hacked . | . . . . Hacks Repelled . | . . . . Allies | -11 -10 -10 -10 -------- Run | Scr Mat Min Exi Total Allies 3 | . . 3 . Largest Group 3 | . . 3 3 Highest-Rated Group 40 | . . 40 40 Highest-Rated Ally 16 | . . 16 16 Total Orders 1 | . . . 1 STAY 1 | . . . 1 Ally Attacks 9 | . . . 9 Total Damage 52 | . . . 52 Kills 1 | . . . 1 Allies Corrupted . | . . . . Allies Melted . | . . . . Intel | -11 -10 -10 -10 ------- Run | Scr Mat Min Exi Robot Analysis Total . | . . . . Derelict Logs Recovered . | . . . . Drone Launches . | . . . . Drone Recoveries . | . . . . Exploration | -11 -10 -10 -10 ------------- Run | Scr Mat Min Exi Turns Passed 1919 | 2 664 465 788 Spaces Moved 795 | 1 295 193 306 Core . | . . . . Treads 700 | . 201 193 306 Legs 95 | 1 94 . . Wheels . | . . . . Hover . | . . . . Flight . | . . . . Fastest Speed 120 | 120 120 240 240 Average Speed 222 | 120 193 240 240 Slowest Speed 240 | 120 240 240 240 Overloaded Moves . | . . . . Propulsion Burnouts . | . . . . Robots Hopped . | . . . . Cave-ins Triggered . | . . . . Exploration Rate (%) 35 | 1 53 39 47 Regions Visited 3 Branch Regions 2 Pre-discovered Areas 1 | . . 1 . Known Exits Taken . | . . . . Unknown Exits Taken 3 | 1 1 1 . Scrap Searched . | . . . . Spaces Dug . | . . . . Terrain Destroyed . | . . . . Melee . | . . . . Projectile . | . . . . AOE . | . . . . Terrain Rammed . | . . . . Walls Destroyed . | . . . . Machines Disabled . | . . . . Actions | -11 -10 -10 -10 --------- Run | Scr Mat Min Exi Total 891 | 2 345 194 350 Wait 15 | . 1 . 14 Move 792 | . 294 192 306 Hop . | . . . . Pick Up 20 | . 14 . 6 Fast Attach 2 | . 2 . . Attach 10 | . 2 1 7 Detach 2 | . . . 2 Swap 3 | . 2 . 1 Drop 9 | 2 3 . 4 Fire 38 | . 27 1 10 Melee . | . . . . Ram . | . . . . Kick . | . . . . Crush . | . . . . Escape Stasis . | . . . . Rewire . | . . . . Trap . | . . . . Miscellaneous . | . . . . Route ------- -11/Scrapyard -10/Materials -10/Mines -10/Exiles History --------- Turn | Location | Event 3 | -11/Scrapyard | Discovered new exit (range 0) 3 | -11/Scrapyard | Entered Materials 108 | -10/Materials | Discovered new exit (range 16) 327 | -10/Materials | Build established: Mutant 667 | -10/Materials | Entered Mines 745 | -10/Mines | Assisted by bots powering up and referring to "LRC-V3" 994 | -10/Mines | Learned location of Storage (-8) 1120 | -10/Mines | Deemed a non-threat by the Exiles lab entrance 1122 | -10/Mines | Discovered new exit (range 5) 1132 | -10/Mines | Entered Exiles 1132 | -10/Exiles | Accompanied by 3 allies 1190 | -10/Exiles | Met 8R-AWN 1231 | -10/Exiles | Met EX-HEX 1450 | -10/Exiles | Met EX-BIN 1486 | -10/Exiles | Aligned with FarCom system 1488 | -10/Exiles | Given EX-Vault access code 1551 | -10/Exiles | Opened EX-Vault 1611 | -10/Exiles | Warned to stay clear of 0b10 Research branches 1648 | -10/Exiles | Exiles lab attacked by MAIN.C 1754 | -10/Exiles | Found Modified TNC 1762 | -10/Exiles | Found Firepult 1768 | -10/Exiles | Found Supersonic Drone Bay 1908 | -10/Exiles | Core integrity fell below 50% 1916 | -10/Exiles | Core integrity fell below 20% 1920 | -10/Exiles | Destroyed by G-34 Mercenary with Small Laser Last Messages --------------- 01912_ G-34 Mercenary destroyed. 01912_ Melted Aluminum Leg. 01912_ G-34 Mercenary critical meltdown. 01912_ Sml. Laser melted. 01912_ Heat Sink melted. 01912_ Imp. Heat Sink melted. 01912_ Remote Datajack melted. 01912_ Shock Rifle melted. 01912_ Mic. Nuclear Core melted. 01912_ P-60 Hacker destroyed. 01912_ G-34 Mercenary critical meltdown. 01912_ Sml. Laser melted. 01912_ Ion Engine melted. 01912_ G-34 Mercenary destroyed. 01914_ Penetrated by Slug. 01917_ H-55 Commando heat short circuits Lgt. Nuclear Core. 01917_ Slug penetrates Wall. 01919_ H-55 Commando heat damages core (-12). 01920_ H-55 Commando heat damages Gauss Rifle. 01920_ Slug penetrates Machine. Map ----- +----------------------------------------------------+ | ??????????????????????#" ## #????????????? | | ??????????????????????#""""""?# #?#########??? | | ??????????????????????##"###??# #?#"""""""#??? | | ??????????????????????? ??????# #?#"""""""#??? | | ??????????????????????????????# #?#"""""""#??? | | ?????????????????????????????## ###"" """"#??? | | ?????????????????????????????#" """"#??? | | ?????????????????????????????#" """#??? | | ?????????????????????????????#" """#??? | | ?????????????????????????????#" """#??? | | ?????????????????????????????#" """#??? | | ?????????????????????????????#" """#??? | | ?????????????????????????????## """"??? | | ??????????????????????????????# """#??? | | ??????????????????????????????#" "X" """???? | | ??????????????????????????????#" """ ???? | | ??????????????????????????????#" """""""""#??? | | ?????????????????????????????##" ###########??? | | ????????????????????????????##"" #????????????? | | ????????????????? ?##??###### " #????????????? | | ????????????#?#X# #"### " " ##???????????? | | ??????????? "" " " =##????#####?# | | ??????????? "" !%=#####""""""" | | ?????????? " [*! " """ " | | ?????????? =%== "" | | ?????????? g @ !% " | | ?????????? b | | ?????????? h *% | | ??????????? | | ???????????" """""" | | ???????????? g%!= ######""" | | ???????????? !*! % "##????#####""" | | ???????????? %%% =*##?????????##""" | | ????????????? =[%%%%#????????????#"""" | | ????????????? h %===%[????????????##"" | | ?????????????? [=[ h#?????????####"""" | | ?????????????? [??????????#""" | | ???????????????? ?????????""" | | ?????????????????? ???? | | ????????????????????? ????? | | ???????????????????????????? " | | ???????????????????????????? " "" """ | | ?????????????????????????????"## ##""" " " ""#" | | ???????????????????????????????# ??#####""" """##" | | ???????????????????????????????#???????###""""#### | | ?????????????????????????????????????????######??? | | ?????????????????????????????????????????????????? | | ?????????????????????????????????????????????????? | | ?????????????????????????????????????????????????? | | ?????????????????????????????????????????????????? | +----------------------------------------------------+ Best States ------------- Heat Dissipation 35 Energy Generation 10 Energy Capacity 250 Matter Stores 300 Matter Capacity 300 Sight Range 16 Terrain Scan Density 10 Armor Coverage 150 Evasion (%) 55 Recoil Reduction 2 Item Schematics ----------------- None Robot Schematics ------------------ None Fabricated ------------ Nothing Alien Tech Used ----------------- None Achievements -------------- None Challenges ------------ None Game ------ Seed ReactionAntimissilePrototype Manual? 0 Play Time 00:08:35 Cumulative 373.9 hours Start 2022.06.09 @ 14:26:21 End 2022.06.09 @ 14:32:11 Sessions 1 Manual Loads 0 Difficulty Rogue Special Mode None Game No. 401 Rogue 401 Adventurer 0 Explorer 0 Win Type - Total 29 Types 18/3/2/1/2/0/3/0/0 Lore% 90 Gallery% 90 Achievement% 80 Wizard Run 0 Options --------- ASCII 0 Keyboard 0 Movement Arrows Keybinds 0 Fullscreen 2 Font 18/SmallcapsGlow Map View 76x50 Tactical HUD 1 Map Filters NONE Filters NONE Steam 1 RUN: a00f70fb-eaa9-4d32-a731-9839e6ac31cd